[Event "Open NK Rapid 2025"]
[Site "Helmond, Netherlands"]
[Date "2025.05.03"]
[Round "9.16"]
[White "Labruyere, Roger"]
[Black "Elferink, Leon"]
[Result "1-0"]
[TimeControl "15+5"]
[WhiteFideId "1059505"]
[BlackFideId "1086545"]
[WhiteElo "2117"]
[BlackElo "1822"]

1. d4 {[%clk 00:15:09]} d5 {[%clk 00:15:09]} {[%emt 00:00:02]} 2. c4 {[%clk
00:15:13]} {[%emt 00:00:01]} e6 {[%clk 00:15:13]} 3. Nf3 {[%clk 00:15:16]}
{[%emt 00:00:01]} Nf6 {[%clk 00:15:17]} {[%emt 00:00:02]} 4. g3 {[%clk
00:15:20]} dxc4 {[%clk 00:15:05]} {[%emt 00:00:16]} 5. Bg2 {[%clk 00:15:23]}
{[%emt 00:00:02]} c5 {[%clk 00:15:09]} {[%emt 00:00:02]} 6. O-O {[%clk
00:15:20]} {[%emt 00:00:08]} Nc6 {[%clk 00:15:13]} {[%emt 00:00:02]} 7. Ne5
{[%clk 00:15:12]} {[%emt 00:00:13]} Bd7 {[%clk 00:15:05]} {[%emt 00:00:12]} 8.
Na3 {[%clk 00:15:11]} {[%emt 00:00:06]} cxd4 {[%clk 00:14:25]} {[%emt
00:00:45]} 9. Naxc4 {[%clk 00:15:14]} {[%emt 00:00:02]} Nd5 {[%clk 00:13:39]}
{[%emt 00:00:51]} 10. e4 {[%clk 00:14:47]} {[%emt 00:00:32]} dxe3 {[%clk
00:12:57]} {[%emt 00:00:48]} 11. fxe3 {[%clk 00:14:50]} Nf6 {[%clk 00:12:35]}
{[%emt 00:00:27]} 12. g4 {[%clk 00:13:56]} {[%emt 00:01:00]} h6 {[%clk
00:12:18]} {[%emt 00:00:21]} 13. h4 {[%clk 00:13:57]} {[%emt 00:00:04]} Qc7
{[%clk 00:11:35]} {[%emt 00:00:49]} 14. Nxd7 {[%clk 00:11:24]} {[%emt
00:02:37]} Qxd7 {[%clk 00:11:28]} {[%emt 00:00:12]} 15. Qf3 {[%clk 00:11:23]}
{[%emt 00:00:05]} Rd8 {[%clk 00:09:07]} {[%emt 00:02:27]} 16. b3 {[%clk
00:10:55]} {[%emt 00:00:34]} Qd5 {[%clk 00:07:37]} {[%emt 00:01:35]} 17. Qf2
{[%clk 00:10:20]} {[%emt 00:00:39]} Qd7 {[%clk 00:07:06]} {[%emt 00:00:35]} 18.
Bb2 {[%clk 00:10:14]} {[%emt 00:00:12]} Nxg4 {[%clk 00:06:07]} {[%emt
00:01:05]} 19. Qf4 {[%clk 00:10:18]} e5 {[%clk 00:05:53]} {[%emt 00:00:19]} 20.
Bxc6 {[%clk 00:10:19]} {[%emt 00:00:04]} exf4 {[%clk 00:05:42]} {[%emt
00:00:16]} 21. Bxd7+ {[%clk 00:10:23]} {[%emt 00:00:01]} Rxd7 {[%clk 00:05:32]}
{[%emt 00:00:14]} 22. Rxf4 {[%clk 00:10:25]} {[%emt 00:00:02]} h5 {[%clk
00:05:11]} {[%emt 00:00:27]} 23. Re4+ {[%clk 00:08:56]} {[%emt 00:01:34]} Kd8
{[%clk 00:04:54]} {[%emt 00:00:21]} 24. Bd4 {[%clk 00:08:52]} {[%emt 00:00:10]}
b6 {[%clk 00:04:44]} {[%emt 00:00:17]} 25. Rc1 {[%clk 00:08:49]} {[%emt
00:00:07]} f6 {[%clk 00:04:29]} {[%emt 00:00:20]} 26. Nxb6 {[%clk 00:08:46]}
{[%emt 00:00:08]} Rc7 {[%clk 00:04:07]} {[%emt 00:00:27]} 27. Rxc7 {[%clk
00:08:43]} {[%emt 00:00:08]} Kxc7 {[%clk 00:04:11]} {[%emt 00:00:01]} 28. Nd5+
{[%clk 00:08:41]} {[%emt 00:00:07]} Kd6 {[%clk 00:03:51]} {[%emt 00:00:25]} 29.
Nf4 {[%clk 00:08:41]} {[%emt 00:00:03]} Ne5 {[%clk 00:03:26]} {[%emt 00:00:31]}
30. Bxe5+ {[%clk 00:08:45]} {[%emt 00:00:02]} fxe5 {[%clk 00:03:28]} {[%emt
00:00:02]} 31. Ng6 {[%clk 00:08:48]} {[%emt 00:00:02]} Rg8 {[%clk 00:03:29]}
{[%emt 00:00:05]} 32. Rxe5 {[%clk 00:08:50]} {[%emt 00:00:02]} Kd7 {[%clk
00:03:15]} {[%emt 00:00:19]} 33. Nxf8+ {[%clk 00:08:53]} {[%emt 00:00:03]} Rxf8
{[%clk 00:03:19]} {[%emt 00:00:01]} 34. Rxh5 {[%clk 00:08:56]} {[%emt
00:00:01]} Rc8 {[%clk 00:02:44]} {[%emt 00:00:40]} 35. Rg5 {[%clk 00:08:54]}
{[%emt 00:00:07]} Rc1+ {[%clk 00:02:46]} {[%emt 00:00:03]} 36. Kh2 {[%clk
00:08:57]} {[%emt 00:00:01]} Ke6 {[%clk 00:02:26]} {[%emt 00:00:26]} 37. Rxg7
{[%clk 00:09:00]} {[%emt 00:00:02]} Rc2+ {[%clk 00:02:26]} {[%emt 00:00:05]} 38.
Rg2 {[%clk 00:09:04]} {[%emt 00:00:01]} Rc3 {[%clk 00:02:28]} {[%emt 00:00:03]}
39. h5 {[%clk 00:09:02]} {[%emt 00:00:07]} Rxe3 {[%clk 00:02:22]} {[%emt
00:00:11]} 40. h6 {[%clk 00:09:05]} {[%emt 00:00:02]} Re5 {[%clk 00:02:23]}
{[%emt 00:00:04]} 41. Rg3 {[%clk 00:08:59]} {[%emt 00:00:11]} Kf7 {[%clk
00:02:03]} {[%emt 00:00:25]} 42. h7 {[%clk 00:09:02]} {[%emt 00:00:02]} Re8
{[%clk 00:02:02]} {[%emt 00:00:06]} 43. Rh3 {[%clk 00:09:05]} {[%emt 00:00:02]}
Kg7 {[%clk 00:02:04]} {[%emt 00:00:03]} 44. h8=Q+ {[%clk 00:09:06]} {[%emt
00:00:05]} Rxh8 {[%clk 00:02:07]} {[%emt 00:00:02]} 45. Rxh8 {[%clk 00:09:09]}
{[%emt 00:00:02]} Kxh8 {[%clk 00:02:10]} {[%emt 00:00:01]} 46. Kg3 {[%clk
00:09:13]} Kg7 {[%clk 00:02:14]} {[%emt 00:00:01]} 47. Kf4 {[%clk 00:09:17]}
Kf6 {[%clk 00:02:19]} 48. Ke4 {[%clk 00:09:22]} Ke6 {[%clk 00:02:23]} 49. Kd4
{[%clk 00:09:21]} {[%emt 00:00:06]} Kd6 {[%clk 00:02:27]} {[%emt 00:00:01]} 50.
b4 {[%clk 00:09:11]} {[%emt 00:00:15]} Kc6 {[%clk 00:01:56]} {[%emt 00:00:36]}
51. Kc4 {[%clk 00:09:11]} {[%emt 00:00:05]} a6 {[%clk 00:01:38]} {[%emt
00:00:23]} 52. a4 {[%clk 00:09:10]} {[%emt 00:00:05]} Kd6 {[%clk 00:01:30]}
{[%emt 00:00:13]} 53. Kd4 {[%clk 00:09:14]} {[%emt 00:00:01]} Kc6 {[%clk
00:01:20]} {[%emt 00:00:16]} 54. Ke5 {[%emt 00:00:30]} Kb7 {[%clk 00:00:51]} 55.
Kd6 {[%clk 00:08:01]} {[%emt 00:01:25]} Kb6 {[%clk 00:00:53]} {[%emt 00:00:04]}
56. Kd7 {[%clk 00:08:03]} {[%emt 00:00:02]} Kb7 {[%clk 00:00:52]} {[%emt
00:00:06]} 57. a5 {[%clk 00:08:05]} {[%emt 00:00:04]} Ka8 {[%clk 00:00:15]}
{[%emt 00:00:42]} 58. Kc6 {[%clk 00:08:06]} {[%emt 00:00:03]} Ka7 {[%clk
00:00:17]} {[%emt 00:00:03]} 59. Kc7 {[%clk 00:08:10]} 1-0

[Event "Open NK Rapid 2025"]
[Site "Helmond, Netherlands"]
[Date "2025.05.03"]
[Round "9.17"]
[White "De Wit, Evan"]
[Black "Margaryan, Artur"]
[Result "0-1"]
[TimeControl "15+5"]
[WhiteFideId "1096389"]
[BlackFideId "13304348"]
[WhiteElo "1917"]
[BlackElo "2100"]

1. e4 {[%clk 00:15:00]} {[%emt 00:00:09]} c5 {[%clk 00:15:09]} {[%emt
00:00:01]} 2. Nf3 {[%clk 00:15:03]} {[%emt 00:00:02]} e6 {[%clk 00:15:13]}
{[%emt 00:00:02]} 3. d4 {[%clk 00:14:37]} {[%emt 00:00:31]} cxd4 {[%clk
00:15:16]} {[%emt 00:00:02]} 4. Nxd4 {[%clk 00:14:41]} {[%emt 00:00:02]} a6
{[%clk 00:15:20]} 5. Nc3 {[%clk 00:14:41]} {[%emt 00:00:04]} Qc7 {[%clk
00:15:24]} {[%emt 00:00:02]} 6. Be3 {[%clk 00:14:44]} {[%emt 00:00:01]} Bb4
{[%clk 00:15:27]} {[%emt 00:00:03]} 7. Qd3 {[%clk 00:09:20]} {[%emt 00:05:28]}
Nf6 {[%clk 00:15:27]} {[%emt 00:00:06]} 8. O-O-O {[%clk 00:08:48]} {[%emt
00:00:37]} Bxc3 {[%clk 00:15:09]} {[%emt 00:00:24]} 9. bxc3 {[%clk 00:08:49]}
{[%emt 00:00:03]} d5 {[%clk 00:14:10]} {[%emt 00:01:04]} 10. exd5 {[%clk
00:08:10]} {[%emt 00:00:44]} Nxd5 {[%clk 00:14:13]} {[%emt 00:00:02]} 11. c4
{[%clk 00:07:41]} {[%emt 00:00:34]} Nxe3 {[%clk 00:14:10]} {[%emt 00:00:08]} 12.
Qxe3 {[%clk 00:07:44]} {[%emt 00:00:02]} O-O {[%clk 00:14:05]} {[%emt
00:00:09]} 13. Bd3 {[%clk 00:07:36]} {[%emt 00:00:13]} Nd7 {[%clk 00:13:46]}
{[%emt 00:00:25]} 14. h4 {[%clk 00:05:53]} {[%emt 00:01:48]} Nc5 {[%clk
00:12:32]} {[%emt 00:01:20]} 15. Nb3 {[%clk 00:05:31]} {[%emt 00:00:27]} Nxd3+
{[%clk 00:12:22]} {[%emt 00:00:14]} 16. cxd3 {[%clk 00:05:34]} {[%emt
00:00:02]} Bd7 {[%clk 00:11:57]} {[%emt 00:00:30]} 17. g4 {[%clk 00:04:17]}
{[%emt 00:01:22]} b5 {[%clk 00:10:55]} {[%emt 00:01:07]} 18. c5 {[%clk
00:04:01]} {[%emt 00:00:20]} Bc6 {[%clk 00:10:45]} {[%emt 00:00:16]} 19. Rhg1
{[%clk 00:03:42]} {[%emt 00:00:24]} Bd5 {[%clk 00:10:49]} {[%emt 00:00:02]} 20.
d4 {[%clk 00:03:26]} {[%emt 00:00:20]} a5 {[%clk 00:10:46]} {[%emt 00:00:08]}
21. Qg3 {[%clk 00:02:59]} {[%emt 00:00:31]} Qb7 {[%clk 00:10:23]} {[%emt
00:00:29]} 22. f4 {[%clk 00:02:24]} {[%emt 00:00:40]} b4 {[%clk 00:10:05]}
{[%emt 00:00:23]} 23. Kb2 {[%clk 00:01:50]} {[%emt 00:00:38]} a4 {[%clk
00:06:19]} {[%emt 00:03:51]} 24. Nd2 {[%clk 00:01:34]} {[%emt 00:00:19]} Rfb8
{[%clk 00:05:59]} {[%emt 00:00:27]} 25. f5 {[%clk 00:01:30]} {[%emt 00:00:09]}
Qb5 {[%clk 00:05:34]} {[%emt 00:00:31]} 26. Rde1 {[%clk 00:00:50]} {[%emt
00:00:44]} a3+ {[%clk 00:05:13]} {[%emt 00:00:26]} 27. Ka1 {[%clk 00:00:46]}
{[%emt 00:00:08]} b3 {[%clk 00:04:40]} {[%emt 00:00:39]} 28. Nxb3 {[%clk
00:00:40]} {[%emt 00:00:11]} Qb4 {[%clk 00:04:35]} {[%emt 00:00:10]} 29. Rd1
{[%clk 00:00:32]} {[%emt 00:00:13]} Rb7 {[%clk 00:03:54]} {[%emt 00:00:46]} 30.
fxe6 {[%clk 00:00:35]} {[%emt 00:00:02]} fxe6 {[%clk 00:03:56]} {[%emt
00:00:03]} 31. Qe3 {[%clk 00:00:31]} {[%emt 00:00:10]} Rf8 {[%clk 00:03:48]}
{[%emt 00:00:13]} 32. Rgf1 {[%clk 00:00:28]} {[%emt 00:00:08]} Rbf7 {[%clk
00:03:41]} {[%emt 00:00:12]} 33. Rxf7 {[%clk 00:00:28]} {[%emt 00:00:05]} Rxf7
{[%clk 00:03:45]} 34. Qd2 {[%clk 00:00:26]} {[%emt 00:00:07]} Qb5 {[%clk
00:03:25]} {[%emt 00:00:25]} 35. Qa5 {[%clk 00:00:17]} {[%emt 00:00:13]} Qe2
{[%clk 00:03:19]} {[%emt 00:00:10]} 36. Rb1 {[%clk 00:00:14]} {[%emt 00:00:09]}
Be4 {[%clk 00:02:11]} {[%emt 00:01:13]} 37. Qd8+ {[%clk 00:00:08]} {[%emt
00:00:11]} Rf8 {[%clk 00:02:14]} {[%emt 00:00:02]} 0-1

[Event "Open NK Rapid 2025"]
[Site "Helmond, Netherlands"]
[Date "2025.05.03"]
[Round "9.18"]
[White "Uddin, Ahnaf Tajwar"]
[Black "Zhang, Xiheng"]
[Result "0-1"]
[TimeControl "15+5"]
[WhiteFideId "1050842"]
[BlackFideId "40102386"]
[WhiteElo "2081"]
[BlackElo "1778"]

1. b3 {[%clk 00:15:08]} {[%emt 00:00:02]} Nf6 {[%clk 00:15:03]} {[%emt
00:00:07]} 2. Bb2 {[%clk 00:15:12]} {[%emt 00:00:01]} g6 {[%clk 00:15:04]}
{[%emt 00:00:05]} 3. e3 {[%clk 00:15:16]} {[%emt 00:00:01]} Bg7 {[%clk
00:15:07]} {[%emt 00:00:01]} 4. f4 {[%clk 00:15:20]} {[%emt 00:00:02]} d5
{[%clk 00:15:02]} {[%emt 00:00:09]} 5. Nf3 {[%clk 00:15:23]} {[%emt 00:00:02]}
c5 {[%clk 00:14:58]} {[%emt 00:00:09]} 6. Be2 {[%clk 00:15:26]} {[%emt
00:00:03]} Nc6 {[%clk 00:14:54]} {[%emt 00:00:09]} 7. Bb5 {[%clk 00:15:26]}
{[%emt 00:00:06]} Bd7 {[%clk 00:14:44]} {[%emt 00:00:15]} 8. O-O {[%clk
00:15:27]} {[%emt 00:00:03]} O-O {[%clk 00:14:26]} {[%emt 00:00:22]} 9. d3
{[%clk 00:15:19]} {[%emt 00:00:14]} Rc8 {[%clk 00:13:44]} {[%emt 00:00:47]} 10.
Bxc6 {[%clk 00:15:20]} {[%emt 00:00:04]} Bxc6 {[%clk 00:13:44]} {[%emt
00:00:04]} 11. Nbd2 {[%clk 00:14:58]} {[%emt 00:00:27]} a6 {[%clk 00:12:27]}
{[%emt 00:01:23]} 12. Ne5 {[%clk 00:14:46]} {[%emt 00:00:17]} Nd7 {[%clk
00:11:53]} {[%emt 00:00:39]} 13. Nxc6 {[%clk 00:14:48]} {[%emt 00:00:03]} Rxc6
{[%clk 00:11:50]} {[%emt 00:00:07]} 14. Bxg7 {[%clk 00:14:51]} {[%emt
00:00:03]} Kxg7 {[%clk 00:11:53]} {[%emt 00:00:02]} 15. Qf3 {[%clk 00:14:31]}
{[%emt 00:00:24]} e6 {[%clk 00:11:19]} {[%emt 00:00:39]} 16. e4 {[%clk
00:14:28]} {[%emt 00:00:09]} dxe4 {[%clk 00:10:50]} {[%emt 00:00:34]} 17. dxe4
{[%clk 00:13:29]} {[%emt 00:01:04]} Nf6 {[%clk 00:09:10]} {[%emt 00:01:45]} 18.
Rad1 {[%clk 00:13:31]} {[%emt 00:00:03]} Qc7 {[%clk 00:07:30]} {[%emt
00:01:45]} 19. e5 {[%clk 00:12:33]} {[%emt 00:01:02]} Nd5 {[%clk 00:07:21]}
{[%emt 00:00:14]} 20. Ne4 {[%clk 00:12:28]} {[%emt 00:00:11]} c4 {[%clk
00:07:00]} {[%emt 00:00:27]} 21. Rxd5 {[%clk 00:10:42]} {[%emt 00:01:51]} exd5
{[%clk 00:06:08]} {[%emt 00:00:57]} 22. Nf6 {[%clk 00:10:45]} cxb3 {[%emt
00:01:17]} 23. cxb3 {[%clk 00:10:35]} Rc3 {[%clk 00:04:34]} {[%emt 00:00:41]}
24. Qxd5 {[%clk 00:10:19]} {[%emt 00:00:21]} Rd8 {[%clk 00:04:30]} {[%emt
00:00:09]} 25. Qe4 {[%clk 00:10:08]} {[%emt 00:00:16]} Qc5+ {[%clk 00:04:24]}
{[%emt 00:00:11]} 26. Kh1 {[%clk 00:10:10]} {[%emt 00:00:03]} Rc1 {[%clk
00:04:19]} {[%emt 00:00:10]} 27. Qf3 {[%clk 00:09:42]} {[%emt 00:00:33]} Rxf1+
{[%clk 00:04:14]} {[%emt 00:00:09]} 28. Qxf1 {[%clk 00:09:46]} {[%emt
00:00:02]} Qc2 {[%clk 00:04:10]} {[%emt 00:00:09]} 0-1

[Event "Open NK Rapid 2025"]
[Site "Helmond, Netherlands"]
[Date "2025.05.03"]
[Round "9.19"]
[White "Vasylchenko, Maksym"]
[Black "Ritzerveld, Noah"]
[Result "0-1"]
[TimeControl "15+5"]
[WhiteFideId "34150617"]
[BlackFideId "1085760"]
[WhiteElo "1853"]
[BlackElo "2053"]

1. d4 {[%clk 00:15:05]} {[%emt 00:00:05]} d5 {[%clk 00:15:09]} {[%emt
00:00:02]} 2. c4 {[%clk 00:15:09]} {[%emt 00:00:01]} c6 {[%clk 00:15:13]} 3.
cxd5 {[%clk 00:15:10]} {[%emt 00:00:04]} cxd5 {[%clk 00:15:18]} {[%emt
00:00:01]} 4. Nf3 {[%clk 00:15:12]} {[%emt 00:00:03]} Nc6 {[%clk 00:15:21]}
{[%emt 00:00:02]} 5. Nc3 {[%clk 00:15:14]} {[%emt 00:00:02]} Nf6 {[%clk
00:15:24]} {[%emt 00:00:02]} 6. Ne5 {[%clk 00:15:16]} {[%emt 00:00:03]} Bf5
{[%clk 00:14:22]} {[%emt 00:01:07]} 7. f3 {[%clk 00:15:14]} {[%emt 00:00:07]}
e6 {[%clk 00:13:56]} {[%emt 00:00:31]} 8. g4 {[%clk 00:15:11]} {[%emt
00:00:07]} Bg6 {[%clk 00:11:50]} {[%emt 00:02:12]} 9. h4 {[%clk 00:15:15]}
{[%emt 00:00:01]} h6 {[%clk 00:11:20]} {[%emt 00:00:35]} 10. Nxg6 {[%clk
00:15:05]} {[%emt 00:00:15]} fxg6 {[%clk 00:11:22]} {[%emt 00:00:01]} 11. Qd3
{[%clk 00:15:09]} {[%emt 00:00:03]} Kf7 {[%clk 00:11:02]} {[%emt 00:00:25]} 12.
a3 {[%clk 00:15:13]} {[%emt 00:00:02]} Bd6 {[%clk 00:10:58]} {[%emt 00:00:08]}
13. Kf2 {[%clk 00:15:14]} {[%emt 00:00:04]} e5 {[%clk 00:10:40]} {[%emt
00:00:23]} 14. dxe5 {[%clk 00:12:32]} {[%emt 00:02:46]} Nxe5 {[%clk 00:10:40]}
{[%emt 00:00:05]} 15. Qb5 {[%clk 00:12:36]} {[%emt 00:00:02]} Rc8 {[%clk
00:09:38]} {[%emt 00:01:07]} 16. Qxb7+ {[%clk 00:12:08]} {[%emt 00:00:33]} Rc7
{[%clk 00:09:41]} {[%emt 00:00:02]} 17. Qb3 {[%clk 00:12:01]} {[%emt 00:00:12]}
Bc5+ {[%clk 00:09:20]} {[%emt 00:00:26]} 18. e3 {[%clk 00:11:56]} {[%emt
00:00:09]} Re8 {[%clk 00:08:39]} {[%emt 00:00:47]} 19. Nb5 {[%clk 00:10:44]}
{[%emt 00:01:18]} Rce7 {[%clk 00:07:12]} {[%emt 00:01:31]} 20. Nd4 {[%clk
00:10:33]} {[%emt 00:00:16]} Nexg4+ {[%clk 00:07:02]} {[%emt 00:00:15]} 21.
fxg4 {[%clk 00:10:10]} {[%emt 00:00:28]} Nxg4+ {[%clk 00:07:05]} {[%emt
00:00:01]} 22. Kg2 {[%clk 00:09:57]} {[%emt 00:00:19]} Nxe3+ {[%clk 00:06:17]}
{[%emt 00:00:53]} 23. Bxe3 {[%clk 00:09:04]} {[%emt 00:00:59]} Rxe3 {[%clk
00:06:19]} {[%emt 00:00:02]} 24. Qb7+ {[%clk 00:07:39]} {[%emt 00:01:30]} R8e7
{[%clk 00:06:19]} {[%emt 00:00:05]} 25. Nc6 {[%clk 00:07:37]} {[%emt 00:00:07]}
Qd6 {[%clk 00:04:51]} {[%emt 00:01:33]} 26. Qxe7+ {[%clk 00:05:04]} {[%emt
00:02:38]} Rxe7 {[%clk 00:04:55]} {[%emt 00:00:01]} 27. Nxe7 {[%clk 00:05:07]}
{[%emt 00:00:02]} Qf4 {[%clk 00:04:57]} {[%emt 00:00:02]} 28. Nxd5 {[%clk
00:03:47]} {[%emt 00:01:25]} Qf2+ {[%clk 00:05:00]} {[%emt 00:00:02]} 29. Kh3
{[%clk 00:03:50]} {[%emt 00:00:03]} Qf3+ {[%clk 00:05:04]} {[%emt 00:00:02]} 30.
Kh2 {[%clk 00:03:50]} {[%emt 00:00:04]} Bd6+ {[%clk 00:04:57]} {[%emt
00:00:12]} 31. Kg1 {[%clk 00:03:48]} {[%emt 00:00:07]} Qg3+ {[%clk 00:05:00]}
{[%emt 00:00:02]} 32. Bg2 {[%clk 00:03:48]} {[%emt 00:00:05]} Bc5+ {[%clk
00:05:04]} {[%emt 00:00:02]} 0-1

[Event "Open NK Rapid 2025"]
[Site "Helmond, Netherlands"]
[Date "2025.05.03"]
[Round "9.20"]
[White "Kshirsagar, Pranav"]
[Black "Messaoudi, Nino"]
[Result "1-0"]
[TimeControl "15+5"]
[WhiteFideId "1084011"]
[BlackFideId "1099930"]
[WhiteElo "2049"]
[BlackElo "1875"]

1. d4 {[%clk 00:15:09]} Nf6 {[%clk 00:15:07]} {[%emt 00:00:04]} 2. c4 {[%clk
00:15:13]} {[%emt 00:00:01]} e6 {[%clk 00:15:10]} {[%emt 00:00:01]} 3. Nf3
{[%clk 00:15:17]} Bb4+ {[%clk 00:15:14]} {[%emt 00:00:02]} 4. Bd2 {[%clk
00:15:21]} {[%emt 00:00:02]} Qe7 {[%clk 00:15:18]} 5. e3 {[%clk 00:15:15]}
{[%emt 00:00:11]} O-O {[%clk 00:14:39]} {[%emt 00:00:43]} 6. Bd3 {[%clk
00:15:18]} d5 {[%clk 00:14:24]} {[%emt 00:00:21]} 7. a3 {[%clk 00:14:29]}
{[%emt 00:00:54]} Bxd2+ {[%clk 00:14:22]} {[%emt 00:00:07]} 8. Nbxd2 {[%clk
00:14:28]} {[%emt 00:00:06]} b6 {[%clk 00:14:00]} {[%emt 00:00:28]} 9. cxd5
{[%clk 00:14:23]} {[%emt 00:00:08]} exd5 {[%clk 00:13:24]} {[%emt 00:00:42]} 10.
O-O {[%clk 00:14:26]} {[%emt 00:00:02]} c5 {[%clk 00:13:22]} {[%emt 00:00:08]}
11. Rc1 {[%clk 00:14:14]} {[%emt 00:00:16]} Ba6 {[%clk 00:12:31]} {[%emt
00:00:57]} 12. Bxa6 {[%clk 00:13:15]} {[%emt 00:01:03]} Nxa6 {[%clk 00:12:34]}
{[%emt 00:00:02]} 13. Qa4 {[%clk 00:13:12]} {[%emt 00:00:08]} Nb8 {[%clk
00:11:58]} {[%emt 00:00:41]} 14. dxc5 {[%clk 00:10:05]} {[%emt 00:03:12]} bxc5
{[%clk 00:11:57]} {[%emt 00:00:05]} 15. Nb3 {[%clk 00:09:52]} {[%emt 00:00:19]}
Nbd7 {[%clk 00:11:49]} {[%emt 00:00:13]} 16. Rfd1 {[%clk 00:09:40]} {[%emt
00:00:17]} Rfb8 {[%clk 00:10:33]} {[%emt 00:01:20]} 17. Rc2 {[%clk 00:06:59]}
{[%emt 00:02:47]} h6 {[%clk 00:06:26]} {[%emt 00:04:12]} 18. h3 {[%clk
00:05:48]} {[%emt 00:01:16]} Rb7 {[%clk 00:06:26]} {[%emt 00:00:05]} 19. Na5
{[%clk 00:05:27]} {[%emt 00:00:26]} Rb6 {[%clk 00:06:02]} {[%emt 00:00:28]} 20.
b4 {[%clk 00:04:24]} {[%emt 00:01:09]} cxb4 {[%clk 00:03:53]} {[%emt 00:02:14]}
21. Nc6 {[%clk 00:04:17]} {[%emt 00:00:12]} Qe4 {[%clk 00:03:16]} {[%emt
00:00:40]} 22. Rd4 {[%clk 00:03:45]} {[%emt 00:00:38]} Qh7 {[%clk 00:02:43]}
{[%emt 00:00:38]} 23. Nxb4 {[%clk 00:03:41]} {[%emt 00:00:09]} a5 {[%clk
00:01:52]} {[%emt 00:00:57]} 24. Rcd2 {[%clk 00:03:26]} {[%emt 00:00:19]} Nc5
{[%clk 00:01:35]} {[%emt 00:00:22]} 25. Qc2 {[%clk 00:03:18]} {[%emt 00:00:14]}
Nce4 {[%clk 00:00:18]} {[%emt 00:01:23]} 26. Nxd5 {[%clk 00:02:31]} {[%emt
00:00:52]} Nxd2 {[%clk 00:00:19]} {[%emt 00:00:03]} 27. Qxh7+ {[%clk 00:02:27]}
{[%emt 00:00:09]} Kxh7 {[%clk 00:00:17]} {[%emt 00:00:08]} 28. Nxb6 {[%clk
00:02:29]} {[%emt 00:00:02]} Nxf3+ {[%clk 00:00:14]} {[%emt 00:00:08]} 29. gxf3
{[%clk 00:02:33]} {[%emt 00:00:01]} Rb8 {[%clk 00:00:08]} {[%emt 00:00:11]} 30.
Nc4 {[%clk 00:02:34]} {[%emt 00:00:04]} Rb3 {[%clk 00:00:08]} {[%emt 00:00:05]}
31. a4 {[%clk 00:02:00]} {[%emt 00:00:39]} {time} 1-0

[Event "Open NK Rapid 2025"]
[Site "Helmond, Netherlands"]
[Date "2025.05.03"]
[Round "9.21"]
[White "Winter, Sven"]
[Black "Vogel, Jaap"]
[Result "1-0"]
[TimeControl "15+5"]
[WhiteFideId "1092375"]
[BlackFideId "1000764"]
[WhiteElo "1869"]
[BlackElo "2006"]

1. e4 {[%clk 00:15:09]} e6 {[%clk 00:15:09]} 2. d4 {[%clk 00:15:13]} {[%emt
00:00:01]} d5 {[%clk 00:15:14]} 3. Nd2 {[%clk 00:15:17]} {[%emt 00:00:02]} Nf6
{[%clk 00:15:15]} {[%emt 00:00:03]} 4. e5 {[%clk 00:15:20]} {[%emt 00:00:01]}
Nfd7 {[%clk 00:15:19]} {[%emt 00:00:01]} 5. f4 {[%clk 00:15:24]} {[%emt
00:00:02]} c5 {[%clk 00:15:09]} {[%emt 00:00:14]} 6. c3 {[%clk 00:15:28]}
{[%emt 00:00:02]} Nc6 {[%clk 00:15:12]} {[%emt 00:00:02]} 7. Ndf3 {[%clk
00:15:31]} a5 {[%clk 00:15:04]} {[%emt 00:00:13]} 8. Bd3 {[%clk 00:15:34]}
{[%emt 00:00:02]} g6 {[%clk 00:14:42]} {[%emt 00:00:27]} 9. Ne2 {[%clk
00:15:29]} {[%emt 00:00:09]} b6 {[%clk 00:14:39]} {[%emt 00:00:09]} 10. f5
{[%clk 00:14:51]} {[%emt 00:00:43]} gxf5 {[%clk 00:14:34]} {[%emt 00:00:10]} 11.
O-O {[%clk 00:14:51]} {[%emt 00:00:03]} Ba6 {[%clk 00:14:30]} {[%emt 00:00:11]}
12. Nf4 {[%clk 00:14:32]} {[%emt 00:00:24]} Qc8 {[%clk 00:12:17]} {[%emt
00:02:18]} 13. Bxa6 {[%clk 00:13:08]} {[%emt 00:01:30]} Qxa6 {[%clk 00:12:19]}
{[%emt 00:00:02]} 14. Ng5 {[%clk 00:13:01]} {[%emt 00:00:12]} cxd4 {[%clk
00:09:05]} {[%emt 00:03:19]} 15. Nfxe6 {[%clk 00:12:24]} {[%emt 00:00:42]} fxe6
{[%clk 00:08:28]} {[%emt 00:00:41]} 16. Qh5+ {[%clk 00:12:27]} {[%emt
00:00:02]} Kd8 {[%clk 00:08:20]} {[%emt 00:00:14]} 17. Nxe6+ {[%clk 00:12:20]}
{[%emt 00:00:12]} Kc8 {[%clk 00:08:24]} 18. Qe8+ {[%clk 00:12:22]} {[%emt
00:00:04]} 1-0